[Event "Titled Tuesday Blitz May 31 Late 2022"]
[White "Taichman, Ori"]
[Black "Sjugirov, Sanan"]
[WhiteFideId "2804069"]
[BlackFideId "4189302"]
[WhiteElo "2227"]
[BlackElo "2602"]
[Result "0-1"]
[Round "06"]
[TimeControl "180+1"]
[Date "2022.05.31"]
[WhiteClock "0:00:17"]
[BlackClock "0:01:20"]

1. e4 {[%clk 0:02:56]}  g6 {[%clk 0:03:00]} 2. d4 {[%clk 0:02:55]}  d6 {[%clk 0:03:01]} 3. Nc3 {[%clk 0:02:56]}  Bg7 {[%clk 0:03:01]} 4. Bg5 {[%clk 0:02:55]}  a6 {[%clk 0:03:01]} 5. f4 {[%clk 0:02:50]}  Nd7 {[%clk 0:02:54]} 6. Nf3 {[%clk 0:02:47]}  c5 {[%clk 0:02:53]} 7. a4 {[%clk 0:02:37]}  cxd4 {[%clk 0:02:48]} 8. Nxd4 {[%clk 0:02:38]}  Ngf6 {[%clk 0:02:46]} 9. a5 {[%clk 0:02:32]}  O-O {[%clk 0:02:45]} 10. Bc4 {[%clk 0:02:26]}  Qc7 {[%clk 0:02:42]} 11. Qe2 {[%clk 0:02:12]}  b5 {[%clk 0:02:09]} 12. Bd5 {[%clk 0:01:46]}  Rb8 {[%clk 0:02:06]} 13. Nc6 {[%clk 0:01:10]}  e6 {[%clk 0:02:05]} 14. Nxb8 {[%clk 0:01:09]}  exd5 {[%clk 0:02:05]} 15. Nxd7 {[%clk 0:01:09]}  Qxd7 {[%clk 0:01:48]} 16. Bxf6 {[%clk 0:01:03]}  Bxf6 {[%clk 0:01:49]} 17. Nxd5 {[%clk 0:01:03]}  Bg7 {[%clk 0:01:45]} 18. c3 {[%clk 0:01:02]}  Bb7 {[%clk 0:01:45]} 19. O-O {[%clk 0:00:58]}  f5 {[%clk 0:01:42]} 20. Nb6 {[%clk 0:00:48]}  Qe6 {[%clk 0:01:34]} 21. e5 {[%clk 0:00:46]}  dxe5 {[%clk 0:01:34]} 22. fxe5 {[%clk 0:00:46]}  Bxe5 {[%clk 0:01:33]} 23. Rae1 {[%clk 0:00:45]}  Be4 {[%clk 0:01:33]} 24. Qd2 {[%clk 0:00:40]}  Bc7 {[%clk 0:01:25]} 25. Qd4 {[%clk 0:00:28]}  Rd8 {[%clk 0:01:21]} 26. Qc5 {[%clk 0:00:23]}  Bd6 {[%clk 0:01:21]} 27. Rxe4 {[%clk 0:00:17]}  Bxc5+ {[%clk 0:01:20]} 0-1


[Site "https://www.chess.com"]

[Event "Titled Tuesday Blitz May 31 Late 2022"]
[White "Vypkhaniuk, Ihor"]
[Black "Lomaia, Diana"]
[WhiteFideId "14112256"]
[BlackFideId "13612476"]
[WhiteElo "2346"]
[BlackElo "1744"]
[Result "1/2-1/2"]
[Round "06"]
[TimeControl "180+1"]
[Date "2022.06.01"]
[WhiteClock "0:00:03"]
[BlackClock "0:00:08"]

1. d4 {[%clk 0:03:00]}  Nf6 {[%clk 0:02:59]} 2. c4 {[%clk 0:03:00]}  g6 {[%clk 0:03:00]} 3. Nc3 {[%clk 0:03:00]}  d5 {[%clk 0:02:58]} 4. cxd5 {[%clk 0:03:01]}  Nxd5 {[%clk 0:02:57]} 5. g3 {[%clk 0:03:02]}  Bg7 {[%clk 0:02:56]} 6. Bg2 {[%clk 0:03:02]}  c6 {[%clk 0:02:57]} 7. e4 {[%clk 0:02:43]}  Nxc3 {[%clk 0:02:56]} 8. bxc3 {[%clk 0:02:44]}  O-O {[%clk 0:02:56]} 9. Ne2 {[%clk 0:02:44]}  c5 {[%clk 0:02:56]} 10. O-O {[%clk 0:02:43]}  cxd4 {[%clk 0:02:55]} 11. cxd4 {[%clk 0:02:43]}  Nc6 {[%clk 0:02:53]} 12. Be3 {[%clk 0:02:43]}  Na5 {[%clk 0:02:51]} 13. Rc1 {[%clk 0:02:38]}  b5 {[%clk 0:02:48]} 14. d5 {[%clk 0:02:19]}  Nc4 {[%clk 0:02:44]} 15. Bd4 {[%clk 0:02:20]}  e5 {[%clk 0:02:42]} 16. Bc5 {[%clk 0:02:15]}  Re8 {[%clk 0:02:42]} 17. Rb1 {[%clk 0:01:55]}  Bd7 {[%clk 0:02:40]} 18. f3 {[%clk 0:01:43]}  Qc7 {[%clk 0:02:37]} 19. Bf2 {[%clk 0:01:43]}  a5 {[%clk 0:02:36]} 20. Qd3 {[%clk 0:01:43]}  Rac8 {[%clk 0:02:32]} 21. Rfc1 {[%clk 0:01:41]}  Qd6 {[%clk 0:02:30]} 22. a4 {[%clk 0:01:33]}  Na3 {[%clk 0:02:23]} 23. Ra1 {[%clk 0:01:23]}  b4 {[%clk 0:02:20]} 24. Qd1 {[%clk 0:01:08]}  f5 {[%clk 0:02:01]} 25. Bh3 {[%clk 0:00:46]}  Bh6 {[%clk 0:01:52]} 26. Rxc8 {[%clk 0:00:42]}  Rxc8 {[%clk 0:01:52]} 27. exf5 {[%clk 0:00:37]}  gxf5 {[%clk 0:01:50]} 28. Qd3 {[%clk 0:00:38]}  e4 {[%clk 0:01:39]} 29. Qb3 {[%clk 0:00:38]}  Bg7 {[%clk 0:01:29]} 30. Bd4 {[%clk 0:00:35]}  Bxd4+ {[%clk 0:01:27]} 31. Nxd4 {[%clk 0:00:36]}  Qc5 {[%clk 0:01:25]} 32. Qe3 {[%clk 0:00:33]}  Qxd5 {[%clk 0:01:20]} 33. fxe4 {[%clk 0:00:27]}  Qe5 {[%clk 0:01:18]} 34. Rf1 {[%clk 0:00:20]}  Rf8 {[%clk 0:01:04]} 35. Qg5+ {[%clk 0:00:20]}  Kh8 {[%clk 0:01:03]} 36. Nxf5 {[%clk 0:00:16]}  b3 {[%clk 0:00:59]} 37. Qe3 {[%clk 0:00:09]}  Be6 {[%clk 0:00:40]} 38. Qb6 {[%clk 0:00:08]}  Qxe4 {[%clk 0:00:34]} 39. Qc5 {[%clk 0:00:03]}  Rc8 {[%clk 0:00:18]} 40. Qxa3 {[%clk 0:00:04]}  Bd5 {[%clk 0:00:18]} 41. Qe7 {[%clk 0:00:02]}  Qh1+ {[%clk 0:00:16]} 42. Kf2 {[%clk 0:00:02]}  Qf3+ {[%clk 0:00:08]} 43. Kg1 {[%clk 0:00:02]}  Qh1+ {[%clk 0:00:08]} 44. Kf2 {[%clk 0:00:03]}  Qf3+ {[%clk 0:00:08]} 45. Kg1 {[%clk 0:00:03]}  Qh1+ {[%clk 0:00:08]} 1/2-1/2


[Site "https://www.chess.com"]

[Event "Titled Tuesday Blitz May 31 Late 2022"]
[White "Zhigalko, Sergei"]
[Black "Tatarinov, Dmitry"]
[WhiteFideId "13502956"]
[BlackFideId "24160067"]
[WhiteElo "2662"]
[BlackElo "2302"]
[Result "1-0"]
[Round "06"]
[TimeControl "180+1"]
[Date "2022.05.31"]
[WhiteClock "0:00:03"]
[BlackClock "0:00:44"]

1. e4 {[%clk 0:03:00]}  c6 {[%clk 0:03:00]} 2. d4 {[%clk 0:03:00]}  d5 {[%clk 0:03:00]} 3. e5 {[%clk 0:03:01]}  Bf5 {[%clk 0:03:00]} 4. Nf3 {[%clk 0:03:01]}  e6 {[%clk 0:03:00]} 5. Be2 {[%clk 0:03:02]}  Ne7 {[%clk 0:02:59]} 6. O-O {[%clk 0:03:01]}  Nd7 {[%clk 0:02:59]} 7. Nbd2 {[%clk 0:03:01]}  Ng6 {[%clk 0:02:59]} 8. Nb3 {[%clk 0:03:00]}  f6 {[%clk 0:02:59]} 9. Ne1 {[%clk 0:03:00]}  fxe5 {[%clk 0:02:43]} 10. g4 {[%clk 0:03:00]}  e4 {[%clk 0:02:41]} 11. gxf5 {[%clk 0:03:00]}  exf5 {[%clk 0:02:41]} 12. f4 {[%clk 0:02:54]}  Bd6 {[%clk 0:02:40]} 13. Ng2 {[%clk 0:02:53]}  Qc7 {[%clk 0:02:38]} 14. Be3 {[%clk 0:02:50]}  Nf6 {[%clk 0:02:33]} 15. Kh1 {[%clk 0:02:31]}  Nf8 {[%clk 0:02:29]} 16. c4 {[%clk 0:02:12]}  Ne6 {[%clk 0:02:28]} 17. cxd5 {[%clk 0:01:52]}  Nxd5 {[%clk 0:02:28]} 18. Bc4 {[%clk 0:01:52]}  g6 {[%clk 0:02:08]} 19. Bxd5 {[%clk 0:01:36]}  cxd5 {[%clk 0:02:09]} 20. Rc1 {[%clk 0:01:36]}  Qd7 {[%clk 0:02:06]} 21. Nd2 {[%clk 0:00:37]}  Kf7 {[%clk 0:02:04]} 22. Qb3 {[%clk 0:00:37]}  Bc7 {[%clk 0:01:59]} 23. Nb1 {[%clk 0:00:29]}  Bb6 {[%clk 0:01:57]} 24. Nc3 {[%clk 0:00:18]}  Rhd8 {[%clk 0:01:57]} 25. Na4 {[%clk 0:00:18]}  Bxd4 {[%clk 0:01:55]} 26. Rfd1 {[%clk 0:00:18]}  Bxe3 {[%clk 0:01:49]} 27. Nxe3 {[%clk 0:00:17]}  d4 {[%clk 0:01:49]} 28. Nc5 {[%clk 0:00:15]}  Qe7 {[%clk 0:01:49]} 29. Nxe6 {[%clk 0:00:08]}  Qxe6 {[%clk 0:01:50]} 30. Rc7+ {[%clk 0:00:07]}  Kf6 {[%clk 0:01:47]} 31. Qb4 {[%clk 0:00:04]}  Qd6 {[%clk 0:01:15]} 32. Qc4 {[%clk 0:00:01]}  Qe6 {[%clk 0:01:01]} 33. Qc5 {[%clk 0:00:02]}  b6 {[%clk 0:00:51]} 34. Ng4+ {[%clk 0:00:02]}  fxg4 {[%clk 0:00:44]} 35. Qg5# {[%clk 0:00:03]} 1-0


[Site "https://www.chess.com"]

[Event "Titled Tuesday Blitz May 31 Late 2022"]
[White "Abarca Gonzalez, Nicolas"]
[Black "Ivic, Velimir"]
[WhiteFideId "3409422"]
[BlackFideId "950122"]
[WhiteElo "2504"]
[BlackElo "2610"]
[Result "0-1"]
[Round "07"]
[TimeControl "180+1"]
[Date "2022.05.31"]
[WhiteClock "0:00:16"]
[BlackClock "0:02:09"]

1. e4 {[%clk 0:02:56]}  c5 {[%clk 0:03:00]} 2. Nf3 {[%clk 0:02:56]}  Nc6 {[%clk 0:03:00]} 3. Bb5 {[%clk 0:02:56]}  e6 {[%clk 0:02:59]} 4. Bxc6 {[%clk 0:02:55]}  bxc6 {[%clk 0:03:00]} 5. e5 {[%clk 0:02:56]}  f6 {[%clk 0:02:58]} 6. O-O {[%clk 0:02:56]}  fxe5 {[%clk 0:02:57]} 7. Nxe5 {[%clk 0:02:57]}  Nf6 {[%clk 0:02:57]} 8. d4 {[%clk 0:02:53]}  cxd4 {[%clk 0:02:55]} 9. Qxd4 {[%clk 0:02:54]}  Be7 {[%clk 0:02:55]} 10. c4 {[%clk 0:02:54]}  c5 {[%clk 0:02:53]} 11. Qh4 {[%clk 0:02:49]}  O-O {[%clk 0:02:52]} 12. Nc3 {[%clk 0:02:43]}  Bb7 {[%clk 0:02:51]} 13. Qh3 {[%clk 0:02:26]}  Qc8 {[%clk 0:02:38]} 14. f4 {[%clk 0:02:20]}  d6 {[%clk 0:02:37]} 15. Nd3 {[%clk 0:01:59]}  Ne4 {[%clk 0:02:34]} 16. Nxe4 {[%clk 0:01:52]}  Bxe4 {[%clk 0:02:34]} 17. Nf2 {[%clk 0:01:53]}  Bf5 {[%clk 0:02:35]} 18. g4 {[%clk 0:01:51]}  Bg6 {[%clk 0:02:34]} 19. Be3 {[%clk 0:01:42]}  Bf6 {[%clk 0:02:34]} 20. Rad1 {[%clk 0:01:42]}  Qc6 {[%clk 0:02:23]} 21. Qg2 {[%clk 0:01:35]}  Rfc8 {[%clk 0:02:15]} 22. b3 {[%clk 0:01:18]}  a5 {[%clk 0:02:13]} 23. g5 {[%clk 0:01:18]}  Be7 {[%clk 0:02:12]} 24. h4 {[%clk 0:00:30]}  a4 {[%clk 0:02:10]} 25. Qxc6 {[%clk 0:00:23]}  Rxc6 {[%clk 0:02:11]} 26. Rd2 {[%clk 0:00:17]}  Rb6 {[%clk 0:02:10]} 27. bxa4 {[%clk 0:00:16]}  Rxa4 {[%clk 0:02:09]} 0-1


[Site "https://www.chess.com"]

[Event "Titled Tuesday Blitz May 31 Late 2022"]
[White "Al-Tarboush, Ward"]
[Black "Buchenau, Frank"]
[WhiteFideId "7601450"]
[BlackFideId "4604350"]
[WhiteElo "2294"]
[BlackElo "2157"]
[Result "0-1"]
[Round "07"]
[TimeControl "180+1"]
[Date "2022.06.01"]
[WhiteClock "0:00:01"]
[BlackClock "0:00:05"]

1. e4 {[%clk 0:02:55]}  e6 {[%clk 0:03:00]} 2. d4 {[%clk 0:02:55]}  d5 {[%clk 0:03:00]} 3. exd5 {[%clk 0:02:56]}  exd5 {[%clk 0:03:00]} 4. Bd3 {[%clk 0:02:56]}  Bd6 {[%clk 0:02:59]} 5. Nc3 {[%clk 0:02:56]}  c6 {[%clk 0:02:56]} 6. Nge2 {[%clk 0:02:55]}  Bg4 {[%clk 0:02:55]} 7. f3 {[%clk 0:02:54]}  Bh5 {[%clk 0:02:55]} 8. Be3 {[%clk 0:02:52]}  Bg6 {[%clk 0:02:54]} 9. Bxg6 {[%clk 0:02:51]}  hxg6 {[%clk 0:02:55]} 10. Qd3 {[%clk 0:02:51]}  Nd7 {[%clk 0:02:49]} 11. O-O-O {[%clk 0:02:49]}  Ne7 {[%clk 0:02:46]} 12. Kb1 {[%clk 0:02:46]}  Qc7 {[%clk 0:02:45]} 13. h4 {[%clk 0:02:45]}  O-O-O {[%clk 0:02:44]} 14. g4 {[%clk 0:02:44]}  Rde8 {[%clk 0:02:43]} 15. a3 {[%clk 0:02:41]}  Nb6 {[%clk 0:02:42]} 16. Bc1 {[%clk 0:02:37]}  Nc4 {[%clk 0:02:42]} 17. h5 {[%clk 0:02:33]}  gxh5 {[%clk 0:02:41]} 18. gxh5 {[%clk 0:02:34]}  Qd7 {[%clk 0:02:17]} 19. Rdg1 {[%clk 0:02:31]}  Qf5 {[%clk 0:02:02]} 20. Rg5 {[%clk 0:02:25]}  Qh7 {[%clk 0:01:56]} 21. Rhg1 {[%clk 0:02:21]}  g6 {[%clk 0:01:46]} 22. Nf4 {[%clk 0:01:57]}  gxh5 {[%clk 0:01:29]} 23. Nxh5 {[%clk 0:01:52]}  Qxd3 {[%clk 0:01:27]} 24. cxd3 {[%clk 0:01:52]}  Nb6 {[%clk 0:01:26]} 25. Nf6 {[%clk 0:01:50]}  Ref8 {[%clk 0:01:25]} 26. R5g4 {[%clk 0:01:47]}  Nd7 {[%clk 0:01:11]} 27. Bg5 {[%clk 0:01:46]}  Rh2 {[%clk 0:01:03]} 28. Re1 {[%clk 0:01:31]}  Ng6 {[%clk 0:01:00]} 29. Nxd7 {[%clk 0:01:27]}  Kxd7 {[%clk 0:01:00]} 30. Bf6 {[%clk 0:01:22]}  Rf2 {[%clk 0:00:58]} 31. Re3 {[%clk 0:01:12]}  Re8 {[%clk 0:00:53]} 32. Rxe8 {[%clk 0:00:59]}  Kxe8 {[%clk 0:00:53]} 33. Be5 {[%clk 0:00:49]}  Bxe5 {[%clk 0:00:45]} 34. dxe5 {[%clk 0:00:50]}  Nxe5 {[%clk 0:00:44]} 35. Rg8+ {[%clk 0:00:50]}  Kd7 {[%clk 0:00:42]} 36. d4 {[%clk 0:00:45]}  Nxf3 {[%clk 0:00:42]} 37. Rg4 {[%clk 0:00:39]}  Nd2+ {[%clk 0:00:41]} 38. Ka2 {[%clk 0:00:34]}  Nc4 {[%clk 0:00:41]} 39. Na4 {[%clk 0:00:33]}  b5 {[%clk 0:00:35]} 40. Nc5+ {[%clk 0:00:33]}  Kd6 {[%clk 0:00:35]} 41. Rg8 {[%clk 0:00:29]}  Rxb2+ {[%clk 0:00:34]} 42. Ka1 {[%clk 0:00:30]}  Rd2 {[%clk 0:00:32]} 43. Nb3 {[%clk 0:00:27]}  Rd3 {[%clk 0:00:23]} 44. Ka2 {[%clk 0:00:26]}  a5 {[%clk 0:00:23]} 45. Rd8+ {[%clk 0:00:23]}  Ke7 {[%clk 0:00:21]} 46. Rc8 {[%clk 0:00:23]}  Kd7 {[%clk 0:00:21]} 47. Ra8 {[%clk 0:00:21]}  Kd6 {[%clk 0:00:15]} 48. Ra7 {[%clk 0:00:20]}  a4 {[%clk 0:00:12]} 49. Nc5 {[%clk 0:00:20]}  Rxd4 {[%clk 0:00:11]} 50. Nb7+ {[%clk 0:00:20]}  Ke5 {[%clk 0:00:11]} 51. Nc5 {[%clk 0:00:20]}  Rd2+ {[%clk 0:00:12]} 52. Kb1 {[%clk 0:00:20]}  f5 {[%clk 0:00:12]} 53. Kc1 {[%clk 0:00:19]}  Ra2 {[%clk 0:00:11]} 54. Nd3+ {[%clk 0:00:17]}  Kd4 {[%clk 0:00:11]} 55. Nb4 {[%clk 0:00:17]}  Rh2 {[%clk 0:00:09]} 56. Nxc6+ {[%clk 0:00:17]}  Kc3 {[%clk 0:00:10]} 57. Kd1 {[%clk 0:00:16]}  Nxa3 {[%clk 0:00:08]} 58. Rf7 {[%clk 0:00:15]}  Rf2 {[%clk 0:00:06]} 59. Ne7 {[%clk 0:00:12]}  d4 {[%clk 0:00:05]} 60. Nxf5 {[%clk 0:00:09]}  Rf1+ {[%clk 0:00:04]} 61. Ke2 {[%clk 0:00:09]}  Rh1 {[%clk 0:00:04]} 62. Rc7+ {[%clk 0:00:09]}  Kb4 {[%clk 0:00:04]} 63. Nxd4 {[%clk 0:00:09]}  Rh2+ {[%clk 0:00:04]} 64. Kd3 {[%clk 0:00:08]}  Nc4 {[%clk 0:00:05]} 65. Nc6+ {[%clk 0:00:07]}  Kb3 {[%clk 0:00:04]} 66. Nd4+ {[%clk 0:00:07]}  Kb4 {[%clk 0:00:04]} 67. Nc6+ {[%clk 0:00:07]}  Ka3 {[%clk 0:00:04]} 68. Nd4 {[%clk 0:00:07]}  Rh3+ {[%clk 0:00:05]} 69. Kc2 {[%clk 0:00:07]}  Ne3+ {[%clk 0:00:04]} 70. Kc1 {[%clk 0:00:05]}  b4 {[%clk 0:00:05]} 71. Nb5+ {[%clk 0:00:03]}  Ka2 {[%clk 0:00:05]} 72. Kd2 {[%clk 0:00:02]}  Nd5 {[%clk 0:00:06]} 73. Nd4 {[%clk 0:00:02]}  b3 {[%clk 0:00:06]} 74. Kd1 {[%clk 0:00:02]}  Rh1+ {[%clk 0:00:06]} 75. Kd2 {[%clk 0:00:02]}  Rh2+ {[%clk 0:00:06]} 76. Kd3 {[%clk 0:00:02]}  b2 {[%clk 0:00:07]} 77. Nc2 {[%clk 0:00:02]}  b1=Q {[%clk 0:00:05]} 78. Kd4 {[%clk 0:00:01]}  Rxc2 {[%clk 0:00:05]} 0-1


[Site "https://www.chess.com"]

[Event "Titled Tuesday Blitz May 31 Late 2022"]
[White "Andreikin, Dmitry"]
[Black "Nakamura, Hikaru"]
[WhiteFideId "4158814"]
[BlackFideId "2016192"]
[WhiteElo "2736"]
[BlackElo "2850"]
[Result "1/2-1/2"]
[Round "07"]
[TimeControl "180+1"]
[Date "2022.05.31"]
[WhiteClock "0:00:05"]
[BlackClock "0:00:20"]

1. d4 {[%clk 0:03:00]}  Nf6 {[%clk 0:02:59]} 2. c4 {[%clk 0:03:00]}  e6 {[%clk 0:02:59]} 3. Nf3 {[%clk 0:03:01]}  d5 {[%clk 0:02:59]} 4. g3 {[%clk 0:03:01]}  Be7 {[%clk 0:02:59]} 5. Bg2 {[%clk 0:03:01]}  O-O {[%clk 0:03:00]} 6. O-O {[%clk 0:03:01]}  dxc4 {[%clk 0:03:01]} 7. Qc2 {[%clk 0:03:01]}  b5 {[%clk 0:03:01]} 8. a4 {[%clk 0:03:00]}  Bb7 {[%clk 0:03:01]} 9. axb5 {[%clk 0:02:59]}  a6 {[%clk 0:03:01]} 10. bxa6 {[%clk 0:02:55]}  Nxa6 {[%clk 0:03:02]} 11. Qxc4 {[%clk 0:02:55]}  Bd5 {[%clk 0:03:02]} 12. Qc3 {[%clk 0:02:54]}  c5 {[%clk 0:03:02]} 13. Be3 {[%clk 0:02:53]}  Ne4 {[%clk 0:03:03]} 14. Qe1 {[%clk 0:02:52]}  Nb4 {[%clk 0:03:03]} 15. Rxa8 {[%clk 0:02:52]}  Qxa8 {[%clk 0:03:04]} 16. Nc3 {[%clk 0:02:52]}  Nxc3 {[%clk 0:03:04]} 17. bxc3 {[%clk 0:02:49]}  Nc2 {[%clk 0:03:04]} 18. Qd2 {[%clk 0:02:49]}  Nxe3 {[%clk 0:03:05]} 19. Qxe3 {[%clk 0:02:50]}  cxd4 {[%clk 0:03:05]} 20. cxd4 {[%clk 0:02:51]}  Bf6 {[%clk 0:03:06]} 21. Qf4 {[%clk 0:02:50]}  Qb8 {[%clk 0:03:06]} 22. Qg4 {[%clk 0:02:50]}  g6 {[%clk 0:02:50]} 23. e3 {[%clk 0:02:48]}  h5 {[%clk 0:02:48]} 24. Qf4 {[%clk 0:02:46]}  Qxf4 {[%clk 0:02:48]} 25. gxf4 {[%clk 0:02:47]}  Bxf3 {[%clk 0:02:48]} 26. Bxf3 {[%clk 0:02:48]}  Rc8 {[%clk 0:02:47]} 27. Be4 {[%clk 0:02:46]}  Rd8 {[%clk 0:02:47]} 28. Rb1 {[%clk 0:02:46]}  Rd7 {[%clk 0:02:47]} 29. Kg2 {[%clk 0:02:45]}  Kg7 {[%clk 0:02:47]} 30. Kf3 {[%clk 0:02:44]}  Bh4 {[%clk 0:02:48]} 31. Rb5 {[%clk 0:02:42]}  Be7 {[%clk 0:02:40]} 32. Kg2 {[%clk 0:02:34]}  Rc7 {[%clk 0:02:37]} 33. d5 {[%clk 0:02:26]}  exd5 {[%clk 0:02:36]} 34. Bxd5 {[%clk 0:02:26]}  Rc5 {[%clk 0:02:28]} 35. Rb7 {[%clk 0:02:26]}  Rxd5 {[%clk 0:02:28]} 36. Rxe7 {[%clk 0:02:26]}  Rd2 {[%clk 0:02:28]} 37. Ra7 {[%clk 0:02:24]}  Rb2 {[%clk 0:02:24]} 38. Ra5 {[%clk 0:02:25]}  f5 {[%clk 0:02:22]} 39. Kg3 {[%clk 0:02:21]}  Re2 {[%clk 0:02:21]} 40. h3 {[%clk 0:02:19]}  Kf6 {[%clk 0:02:20]} 41. Ra6+ {[%clk 0:02:16]}  Kg7 {[%clk 0:02:20]} 42. Ra1 {[%clk 0:02:12]}  Kf6 {[%clk 0:02:19]} 43. Kf3 {[%clk 0:02:12]}  Rb2 {[%clk 0:02:19]} 44. Re1 {[%clk 0:02:12]}  Ra2 {[%clk 0:02:18]} 45. Re2 {[%clk 0:02:13]}  Ra1 {[%clk 0:02:16]} 46. Kg2 {[%clk 0:02:12]}  Ra6 {[%clk 0:02:15]} 47. Rb2 {[%clk 0:02:12]}  Rc6 {[%clk 0:02:15]} 48. Kg3 {[%clk 0:02:11]}  Re6 {[%clk 0:02:15]} 49. Rb5 {[%clk 0:02:04]}  Ra6 {[%clk 0:02:14]} 50. Rb4 {[%clk 0:01:57]}  Rc6 {[%clk 0:02:13]} 51. Ra4 {[%clk 0:01:55]}  Rb6 {[%clk 0:02:13]} 52. Kh4 {[%clk 0:01:41]}  Re6 {[%clk 0:02:08]} 53. Rd4 {[%clk 0:01:36]}  Ra6 {[%clk 0:02:07]} 54. Kg3 {[%clk 0:01:35]}  Ra2 {[%clk 0:02:04]} 55. Rd8 {[%clk 0:01:35]}  Re2 {[%clk 0:02:03]} 56. Rf8+ {[%clk 0:01:34]}  Ke7 {[%clk 0:02:03]} 57. Rg8 {[%clk 0:01:33]}  Kf6 {[%clk 0:02:03]} 58. Ra8 {[%clk 0:01:34]}  Rb2 {[%clk 0:02:03]} 59. Ra6+ {[%clk 0:01:33]}  Kf7 {[%clk 0:02:03]} 60. Ra1 {[%clk 0:01:23]}  Re2 {[%clk 0:02:02]} 61. Kf3 {[%clk 0:01:23]}  Rb2 {[%clk 0:02:02]} 62. Re1 {[%clk 0:01:23]}  Kf6 {[%clk 0:02:02]} 63. Re2 {[%clk 0:01:23]}  Rb1 {[%clk 0:02:01]} 64. Rd2 {[%clk 0:01:21]}  Rb6 {[%clk 0:02:00]} 65. Kg3 {[%clk 0:01:20]}  Re6 {[%clk 0:01:59]} 66. Rd3 {[%clk 0:01:21]}  Ra6 {[%clk 0:01:59]} 67. f3 {[%clk 0:01:18]}  Re6 {[%clk 0:01:59]} 68. Rc3 {[%clk 0:01:18]}  Re7 {[%clk 0:01:51]} 69. Rc6+ {[%clk 0:01:14]}  Kf7 {[%clk 0:01:50]} 70. Rc3 {[%clk 0:00:58]}  Re6 {[%clk 0:01:48]} 71. Kh4 {[%clk 0:00:57]}  Kf6 {[%clk 0:01:48]} 72. Ra3 {[%clk 0:00:56]}  Rb6 {[%clk 0:01:48]} 73. e4 {[%clk 0:00:54]}  fxe4 {[%clk 0:01:24]} 74. fxe4 {[%clk 0:00:55]}  Re6 {[%clk 0:01:24]} 75. Ra4 {[%clk 0:00:54]}  Rb6 {[%clk 0:01:23]} 76. Rd4 {[%clk 0:00:53]}  Rb1 {[%clk 0:00:49]} 77. Rd6+ {[%clk 0:00:52]}  Kg7 {[%clk 0:00:48]} 78. f5 {[%clk 0:00:49]}  gxf5 {[%clk 0:00:44]} 79. exf5 {[%clk 0:00:50]}  Rf1 {[%clk 0:00:41]} 80. Kg5 {[%clk 0:00:50]}  Rg1+ {[%clk 0:00:40]} 81. Kxh5 {[%clk 0:00:49]}  Rf1 {[%clk 0:00:40]} 82. Kg4 {[%clk 0:00:36]}  Rg1+ {[%clk 0:00:41]} 83. Kf4 {[%clk 0:00:35]}  Rf1+ {[%clk 0:00:42]} 84. Ke5 {[%clk 0:00:33]}  Re1+ {[%clk 0:00:42]} 85. Kf4 {[%clk 0:00:30]}  Rf1+ {[%clk 0:00:42]} 86. Kg5 {[%clk 0:00:27]}  Rg1+ {[%clk 0:00:42]} 87. Kh5 {[%clk 0:00:28]}  Rf1 {[%clk 0:00:43]} 88. Rg6+ {[%clk 0:00:21]}  Kf7 {[%clk 0:00:40]} 89. Kg5 {[%clk 0:00:19]}  Rg1+ {[%clk 0:00:38]} 90. Kh6 {[%clk 0:00:19]}  Rf1 {[%clk 0:00:33]} 91. Rg5 {[%clk 0:00:16]}  Kf6 {[%clk 0:00:34]} 92. h4 {[%clk 0:00:14]}  Rxf5 {[%clk 0:00:30]} 93. Rg6+ {[%clk 0:00:10]}  Kf7 {[%clk 0:00:30]} 94. Rg7+ {[%clk 0:00:10]}  Kf8 {[%clk 0:00:30]} 95. Rg5 {[%clk 0:00:10]}  Rf7 {[%clk 0:00:28]} 96. h5 {[%clk 0:00:09]}  Ra7 {[%clk 0:00:25]} 97. Rb5 {[%clk 0:00:07]}  Ra6+ {[%clk 0:00:22]} 98. Kh7 {[%clk 0:00:07]}  Ra7+ {[%clk 0:00:23]} 99. Kh8 {[%clk 0:00:06]}  Ra1 {[%clk 0:00:20]} 100. Rf5+ {[%clk 0:00:06]}  Ke7 {[%clk 0:00:21]} 101. h6 {[%clk 0:00:06]}  Rg1 {[%clk 0:00:21]} 102. Ra5 {[%clk 0:00:05]}  Rg2 {[%clk 0:00:21]} 103. Ra7+ {[%clk 0:00:05]}  Kf8 {[%clk 0:00:21]} 104. Ra8+ {[%clk 0:00:05]}  Kf7 {[%clk 0:00:21]} 105. Ra7+ {[%clk 0:00:05]}  Kf8 {[%clk 0:00:22]} 106. Rg7 {[%clk 0:00:06]}  Rh2 {[%clk 0:00:22]} 107. Kh7 {[%clk 0:00:06]}  Rf2 {[%clk 0:00:20]} 108. Rg8+ {[%clk 0:00:04]}  Kf7 {[%clk 0:00:20]} 109. Rg7+ {[%clk 0:00:05]}  Kf8 {[%clk 0:00:21]} 110. Kg6 {[%clk 0:00:05]}  Rg2+ {[%clk 0:00:20]} 111. Kf6 {[%clk 0:00:04]}  Rxg7 {[%clk 0:00:20]} 112. hxg7+ {[%clk 0:00:04]}  Kg8 {[%clk 0:00:20]} 113. Kg6 {[%clk 0:00:05]} 1/2-1/2


[Site "https://www.chess.com"]